[Event "Early-Titled-Tuesday-Blitz-February-06-2024"]
[Site "Chess.com"]
[Date "2024.02.06"]
[Round "4"]
[White "MyDream003"]
[Black "Nouali_Mohamed"]
[Result "0-1"]
[WhiteElo "2752"]
[BlackElo "2562"]
[TimeControl "180+1"]
[EndTime "8:40:26 PST"]
[Termination "Nouali_Mohamed won on time"]

1. e4 {[%clk 0:03:00.9]} 1... c5 {[%clk 0:02:59]} 2. Nf3 {[%clk 0:02:59.5]} 2...
Nc6 {[%clk 0:02:59.2]} 3. Bb5 {[%clk 0:02:50.9]} 3... Qc7 {[%clk 0:02:58.8]} 4.
O-O {[%clk 0:02:43.8]} 4... e6 {[%clk 0:02:59.1]} 5. c3 {[%clk 0:02:42.4]} 5...
a6 {[%clk 0:02:58.7]} 6. Ba4 {[%clk 0:02:41.6]} 6... b5 {[%clk 0:02:57.3]} 7.
Bc2 {[%clk 0:02:41.1]} 7... Bb7 {[%clk 0:02:56.2]} 8. Re1 {[%clk 0:02:40]} 8...
Nf6 {[%clk 0:02:54.2]} 9. d3 {[%clk 0:02:29.2]} 9... d6 {[%clk 0:02:31.9]} 10.
Nbd2 {[%clk 0:02:29.1]} 10... Be7 {[%clk 0:02:31.5]} 11. Nf1 {[%clk 0:02:29.2]}
11... O-O {[%clk 0:02:29.3]} 12. Ng3 {[%clk 0:02:29.2]} 12... b4 {[%clk
0:02:25.6]} 13. h3 {[%clk 0:02:19.5]} 13... a5 {[%clk 0:02:22.1]} 14. Bd2 {[%clk
0:02:08.6]} 14... Ne5 {[%clk 0:02:14.5]} 15. Nxe5 {[%clk 0:01:41.3]} 15... dxe5
{[%clk 0:02:15.4]} 16. Qe2 {[%clk 0:01:40.8]} 16... Rfd8 {[%clk 0:02:08.9]} 17.
Be3 {[%clk 0:01:35.4]} 17... a4 {[%clk 0:02:00.9]} 18. cxb4 {[%clk 0:01:31.9]}
18... cxb4 {[%clk 0:02:00.5]} 19. Rac1 {[%clk 0:01:32.2]} 19... Qa5 {[%clk
0:01:51.4]} 20. Bb1 {[%clk 0:01:26]} 20... Ba6 {[%clk 0:01:44.3]} 21. Red1
{[%clk 0:01:21.9]} 21... Bb5 {[%clk 0:01:38.4]} 22. Qe1 {[%clk 0:01:17.9]} 22...
Qa6 {[%clk 0:01:32.5]} 23. d4 {[%clk 0:01:16.9]} 23... exd4 {[%clk 0:01:16.2]}
24. Rxd4 {[%clk 0:01:15.8]} 24... e5 {[%clk 0:01:07.8]} 25. Rxd8+ {[%clk
0:01:09.4]} 25... Rxd8 {[%clk 0:01:08.6]} 26. Nf5 {[%clk 0:00:51]} 26... Bf8
{[%clk 0:01:08.1]} 27. Bc5 {[%clk 0:00:40.7]} 27... g6 {[%clk 0:00:47.1]} 28.
Bxf8 {[%clk 0:00:33.5]} 28... Rxf8 {[%clk 0:00:40.9]} 29. Ne7+ {[%clk
0:00:30.9]} 29... Kg7 {[%clk 0:00:41.1]} 30. Qxb4 {[%clk 0:00:30.5]} 30... Rd8
{[%clk 0:00:32.3]} 31. Qc5 {[%clk 0:00:21.3]} 31... Qb7 {[%clk 0:00:27]} 32.
Qxe5 {[%clk 0:00:15.7]} 32... Re8 {[%clk 0:00:24.3]} 33. Rc7 {[%clk 0:00:15.8]}
33... Qb8 {[%clk 0:00:20]} 34. Qc5 {[%clk 0:00:11.8]} 34... Ba6 {[%clk
0:00:13.3]} 35. Qc3 {[%clk 0:00:10.7]} 35... a3 {[%clk 0:00:11.7]} 36. b3 {[%clk
0:00:09.7]} 36... Qd8 {[%clk 0:00:09.9]} 37. Nd5 {[%clk 0:00:09]} 37... Re6
{[%clk 0:00:05]} 38. Ra7 {[%clk 0:00:06.6]} 38... Kg8 {[%clk 0:00:03.3]} 39. Bc2
{[%clk 0:00:05.4]} 39... Nxd5 {[%clk 0:00:03.1]} 40. exd5 {[%clk 0:00:06.3]}
40... Rd6 {[%clk 0:00:03]} 41. Be4 {[%clk 0:00:06.2]} 41... h5 {[%clk
0:00:02.7]} 42. Bf3 {[%clk 0:00:03.9]} 42... Qe8 {[%clk 0:00:02.8]} 43. Qc5
{[%clk 0:00:03.9]} 43... Qe1+ {[%clk 0:00:02.8]} 44. Kh2 {[%clk 0:00:03.8]}
44... Qe5+ {[%clk 0:00:03.7]} 45. g3 {[%clk 0:00:04.4]} 45... h4 {[%clk
0:00:02.7]} 46. Ra8+ {[%clk 0:00:04.9]} 46... Kg7 {[%clk 0:00:02.3]} 47. Qa5
{[%clk 0:00:04.4]} 47... hxg3+ {[%clk 0:00:03.2]} 48. fxg3 {[%clk 0:00:05]}
48... Qb2+ {[%clk 0:00:03.7]} 49. Bg2 {[%clk 0:00:05.6]} 49... Bf1 {[%clk
0:00:03.9]} 0-1

[Event "Early-Titled-Tuesday-Blitz-February-06-2024"]
[Site "Chess.com"]
[Date "2024.02.06"]
[Round "4"]
[White "ccccvhhhj"]
[Black "GMG"]
[Result "0-1"]
[WhiteElo "2449"]
[BlackElo "2680"]
[TimeControl "180+1"]
[EndTime "8:40:29 PST"]
[Termination "GMG won on time"]

1. e4 {[%clk 0:03:00.9]} 1... c5 {[%clk 0:03:00]} 2. Nf3 {[%clk 0:03:01]} 2...
Nc6 {[%clk 0:03:00.7]} 3. d4 {[%clk 0:03:01.5]} 3... cxd4 {[%clk 0:03:01.6]} 4.
Nxd4 {[%clk 0:03:02.4]} 4... Nf6 {[%clk 0:03:02.2]} 5. Nc3 {[%clk 0:03:03]} 5...
e5 {[%clk 0:03:02.5]} 6. Ndb5 {[%clk 0:03:03.4]} 6... d6 {[%clk 0:03:02.9]} 7.
Bg5 {[%clk 0:03:04.1]} 7... a6 {[%clk 0:03:03]} 8. Na3 {[%clk 0:03:04.9]} 8...
Be6 {[%clk 0:03:03.6]} 9. Bxf6 {[%clk 0:03:05.6]} 9... Qxf6 {[%clk 0:03:03]} 10.
Nd5 {[%clk 0:03:03]} 10... Qd8 {[%clk 0:02:56.9]} 11. c3 {[%clk 0:03:00.6]}
11... Be7 {[%clk 0:02:56.4]} 12. Nc2 {[%clk 0:02:59.5]} 12... Bg5 {[%clk
0:02:55.1]} 13. Be2 {[%clk 0:02:58.5]} 13... Ne7 {[%clk 0:02:36.6]} 14. Nce3
{[%clk 0:02:40]} 14... Bxe3 {[%clk 0:02:35.7]} 15. Nxe3 {[%clk 0:02:39.1]} 15...
d5 {[%clk 0:02:34.3]} 16. exd5 {[%clk 0:02:38.9]} 16... Nxd5 {[%clk 0:02:35.2]}
17. Nxd5 {[%clk 0:02:25.5]} 17... Qxd5 {[%clk 0:02:36.1]} 18. O-O {[%clk
0:02:19]} 18... Qxd1 {[%clk 0:02:28.1]} 19. Rfxd1 {[%clk 0:02:17.3]} 19... Ke7
{[%clk 0:02:29]} 20. Bf3 {[%clk 0:02:13]} 20... Rhd8 {[%clk 0:02:12.7]} 21. b3
{[%clk 0:02:04.5]} 21... Rab8 {[%clk 0:02:07.3]} 22. Rxd8 {[%clk 0:01:42]} 22...
Kxd8 {[%clk 0:02:08.2]} 23. Kf1 {[%clk 0:01:36.4]} 23... Ke7 {[%clk 0:02:05.2]}
24. c4 {[%clk 0:01:22.9]} 24... f5 {[%clk 0:02:03.9]} 25. Rc1 {[%clk 0:00:40.5]}
25... e4 {[%clk 0:01:57.4]} 26. Be2 {[%clk 0:00:40.7]} 26... Kd6 {[%clk
0:01:39]} 27. Ke1 {[%clk 0:00:40.7]} 27... Kc5 {[%clk 0:01:37.5]} 28. Kd2 {[%clk
0:00:39]} 28... Kd4 {[%clk 0:01:33.9]} 29. Rd1 {[%clk 0:00:39.4]} 29... f4
{[%clk 0:01:16.9]} 30. Kc2+ {[%clk 0:00:37.8]} 30... Ke5 {[%clk 0:01:15.4]} 31.
Kc3 {[%clk 0:00:34.1]} 31... g5 {[%clk 0:01:15.5]} 32. b4 {[%clk 0:00:24.6]}
32... g4 {[%clk 0:01:14.4]} 33. a4 {[%clk 0:00:20.7]} 33... f3 {[%clk
0:01:11.4]} 34. Bf1 {[%clk 0:00:19]} 34... Rf8 {[%clk 0:00:57]} 35. g3 {[%clk
0:00:18.4]} 35... Rc8 {[%clk 0:00:45.6]} 36. a5 {[%clk 0:00:10.8]} 36... Rc7
{[%clk 0:00:41.2]} 37. Kb3 {[%clk 0:00:10.5]} 37... Rd7 {[%clk 0:00:37.8]} 38.
Rxd7 {[%clk 0:00:08.1]} 38... Bxd7 {[%clk 0:00:38.7]} 39. b5 {[%clk 0:00:07.5]}
39... Kd4 {[%clk 0:00:35.4]} 40. Kb4 {[%clk 0:00:07.5]} 40... e3 {[%clk
0:00:20.7]} 41. fxe3+ {[%clk 0:00:08.4]} 41... Kxe3 {[%clk 0:00:21.6]} 42. bxa6
{[%clk 0:00:07.4]} 42... bxa6 {[%clk 0:00:21.9]} 43. c5 {[%clk 0:00:08.3]} 43...
Bc8 {[%clk 0:00:20.5]} 44. c6 {[%clk 0:00:07.7]} 44... Kf2 {[%clk 0:00:20.3]}
45. Bc4 {[%clk 0:00:07.5]} 45... Kg1 {[%clk 0:00:20]} 46. Kc5 {[%clk 0:00:06.8]}
46... f2 {[%clk 0:00:19]} 47. Kd6 {[%clk 0:00:07]} 47... Kxh2 {[%clk 0:00:17.2]}
48. Kc7 {[%clk 0:00:06.3]} 48... Be6 {[%clk 0:00:17.4]} 49. Bf1 {[%clk 0:00:05]}
49... Kxg3 {[%clk 0:00:15.3]} 50. Bxa6 {[%clk 0:00:04.7]} 50... Kg2 {[%clk
0:00:15.2]} 51. Bd3 {[%clk 0:00:04.1]} 51... g3 {[%clk 0:00:13.5]} 52. a6 {[%clk
0:00:04.4]} 52... f1=Q {[%clk 0:00:12.8]} 53. Bxf1+ {[%clk 0:00:04.1]} 53...
Kxf1 {[%clk 0:00:13.7]} 54. a7 {[%clk 0:00:04.9]} 54... g2 {[%clk 0:00:14.2]}
55. a8=Q {[%clk 0:00:05.5]} 55... g1=Q {[%clk 0:00:14.6]} 56. Qa1+ {[%clk
0:00:05.1]} 56... Kg2 {[%clk 0:00:12.7]} 57. Qg7+ {[%clk 0:00:05.2]} 57... Kh1
{[%clk 0:00:10.6]} 58. Qh6+ {[%clk 0:00:05.2]} 58... Qh2+ {[%clk 0:00:10.7]} 59.
Qxh2+ {[%clk 0:00:05.1]} 59... Kxh2 {[%clk 0:00:11.6]} 60. Kd6 {[%clk
0:00:05.7]} 60... Bg4 {[%clk 0:00:11.8]} 61. Ke5 {[%clk 0:00:05.7]} 61... Kg3
{[%clk 0:00:11.7]} 0-1

[Event "Early-Titled-Tuesday-Blitz-February-06-2024"]
[Site "Chess.com"]
[Date "2024.02.06"]
[Round "4"]
[White "Happy1712Drummer"]
[Black "ChessSwole"]
[Result "0-1"]
[WhiteElo "2407"]
[BlackElo "2680"]
[TimeControl "180+1"]
[EndTime "8:40:33 PST"]
[Termination "ChessSwole won by resignation"]

1. e4 {[%clk 0:03:00.9]} 1... c5 {[%clk 0:02:58.1]} 2. Nf3 {[%clk 0:03:01.2]}
2... d6 {[%clk 0:02:58.2]} 3. Bb5+ {[%clk 0:03:01.7]} 3... Bd7 {[%clk 0:02:58]}
4. Bxd7+ {[%clk 0:03:02.1]} 4... Qxd7 {[%clk 0:02:58.7]} 5. O-O {[%clk
0:03:02.7]} 5... Nc6 {[%clk 0:02:57.1]} 6. d3 {[%clk 0:03:03.1]} 6... g6 {[%clk
0:02:56.3]} 7. c3 {[%clk 0:03:00.8]} 7... Bg7 {[%clk 0:02:55.5]} 8. d4 {[%clk
0:02:59.7]} 8... cxd4 {[%clk 0:02:45.7]} 9. cxd4 {[%clk 0:03:00.6]} 9... Nf6
{[%clk 0:02:45.1]} 10. Nc3 {[%clk 0:03:00.8]} 10... O-O {[%clk 0:02:44.9]} 11.
h3 {[%clk 0:02:53.1]} 11... b5 {[%clk 0:02:37.5]} 12. e5 {[%clk 0:02:41.9]}
12... Ne8 {[%clk 0:02:26.8]} 13. Bf4 {[%clk 0:01:57.3]} 13... Nc7 {[%clk
0:02:05.7]} 14. exd6 {[%clk 0:01:51.9]} 14... exd6 {[%clk 0:02:06.6]} 15. Ne4
{[%clk 0:01:44.7]} 15... Qf5 {[%clk 0:01:53.2]} 16. Bxd6 {[%clk 0:01:37.9]}
16... Qxe4 {[%clk 0:01:53.1]} 17. Bxc7 {[%clk 0:01:36.6]} 17... Nxd4 {[%clk
0:01:52.1]} 18. Nxd4 {[%clk 0:01:34.3]} 18... Qxd4 {[%clk 0:01:51.3]} 19. Qxd4
{[%clk 0:01:28.5]} 19... Bxd4 {[%clk 0:01:52.2]} 20. Rfd1 {[%clk 0:01:22.6]}
20... Bf6 {[%clk 0:01:46.9]} 21. Rd2 {[%clk 0:01:07.5]} 21... Rac8 {[%clk
0:01:43.9]} 22. Bd6 {[%clk 0:01:07.3]} 22... Rfd8 {[%clk 0:01:40]} 23. Rad1
{[%clk 0:01:07.5]} 23... Rc6 {[%clk 0:01:36.6]} 24. b3 {[%clk 0:00:58.1]} 24...
Bg5 {[%clk 0:01:21]} 25. f4 {[%clk 0:00:57.6]} 25... Bf6 {[%clk 0:01:17.3]} 26.
Be5 {[%clk 0:00:29]} 26... Rxd2 {[%clk 0:01:16.4]} 27. Rxd2 {[%clk 0:00:29.9]}
27... Bxe5 {[%clk 0:01:11.5]} 28. fxe5 {[%clk 0:00:30.8]} 28... Rc5 {[%clk
0:01:04.4]} 29. e6 {[%clk 0:00:29]} 29... fxe6 {[%clk 0:01:00.4]} 30. Rd8+
{[%clk 0:00:29.1]} 30... Kf7 {[%clk 0:00:55.2]} 31. Rd7+ {[%clk 0:00:29.2]}
31... Kf6 {[%clk 0:00:55.9]} 32. Rxa7 {[%clk 0:00:29.4]} 32... h5 {[%clk
0:00:44]} 33. Ra5 {[%clk 0:00:27.5]} 33... Rc2 {[%clk 0:00:39.2]} 34. Rxb5
{[%clk 0:00:20.6]} 34... Rxa2 {[%clk 0:00:39.4]} 35. b4 {[%clk 0:00:20.9]} 35...
e5 {[%clk 0:00:38.6]} 36. Rb8 {[%clk 0:00:13.4]} 36... e4 {[%clk 0:00:32.8]} 37.
b5 {[%clk 0:00:12.1]} 37... Ke5 {[%clk 0:00:31]} 38. b6 {[%clk 0:00:10.3]} 38...
Kd6 {[%clk 0:00:26]} 39. Re8 {[%clk 0:00:08]} 39... Rb2 {[%clk 0:00:21.2]} 40.
Rxe4 {[%clk 0:00:06.5]} 40... Rxb6 {[%clk 0:00:21.8]} 41. Kf2 {[%clk 0:00:06.4]}
41... Kd5 {[%clk 0:00:22]} 42. Re2 {[%clk 0:00:06.2]} 42... Re6 {[%clk
0:00:21.1]} 43. Rd2+ {[%clk 0:00:04]} 43... Ke5 {[%clk 0:00:20.6]} 44. Re2+
{[%clk 0:00:04.7]} 44... Kf5 {[%clk 0:00:21.3]} 45. g4+ {[%clk 0:00:04.1]} 45...
hxg4 {[%clk 0:00:20.9]} 46. hxg4+ {[%clk 0:00:05]} 46... Kf6 {[%clk 0:00:21.2]}
47. Rxe6+ {[%clk 0:00:03.8]} 47... Kxe6 {[%clk 0:00:22.1]} 48. Kf3 {[%clk
0:00:03.7]} 48... Ke5 {[%clk 0:00:20.7]} 49. Ke3 {[%clk 0:00:04]} 49... g5
{[%clk 0:00:20.7]} 50. Kf3 {[%clk 0:00:04.1]} 50... Kd4 {[%clk 0:00:21.1]} 51.
Kg3 {[%clk 0:00:03.7]} 51... Ke3 {[%clk 0:00:21.4]} 52. Kh3 {[%clk 0:00:04]}
52... Kf4 {[%clk 0:00:21.9]} 53. Kh2 {[%clk 0:00:04.5]} 53... Kf3 {[%clk
0:00:22.6]} 54. Kh3 {[%clk 0:00:04.7]} 54... Kf2 {[%clk 0:00:21.3]} 55. Kh2
{[%clk 0:00:05]} 55... Kf3 {[%clk 0:00:20.6]} 56. Kh3 {[%clk 0:00:05.6]} 56...
Kf4 {[%clk 0:00:21.1]} 57. Kh2 {[%clk 0:00:06.1]} 57... Kxg4 {[%clk 0:00:21.9]}
58. Kg2 {[%clk 0:00:06.6]} 58... Kf4 {[%clk 0:00:22.4]} 59. Kf2 {[%clk
0:00:07.2]} 59... Kf5 {[%clk 0:00:22.3]} 60. Kf3 {[%clk 0:00:06.8]} 60... Kf6
{[%clk 0:00:22.4]} 61. Kg4 {[%clk 0:00:07]} 61... Kg6 {[%clk 0:00:23]} 62. Kg3
{[%clk 0:00:07.7]} 62... Kf5 {[%clk 0:00:23.5]} 63. Kg2 {[%clk 0:00:07.7]} 63...
Kg4 {[%clk 0:00:23.5]} 64. Kf2 {[%clk 0:00:08]} 64... Kh3 {[%clk 0:00:23.8]} 65.
Kg1 {[%clk 0:00:02.5]} 65... Kg3 {[%clk 0:00:24.1]} 66. Kh1 {[%clk 0:00:02.4]}
66... g4 {[%clk 0:00:21.6]} 67. Kg1 {[%clk 0:00:02.8]} 67... Kh3 {[%clk
0:00:21.3]} 68. Kh1 {[%clk 0:00:02.6]} 68... g3 {[%clk 0:00:21.9]} 0-1

[Event "Early-Titled-Tuesday-Blitz-February-06-2024"]
[Site "Chess.com"]
[Date "2024.02.06"]
[Round "4"]
[White "Canal_Showdrez"]
[Black "BeautiFullMindChess"]
[Result "1/2-1/2"]
[WhiteElo "2034"]
[BlackElo "2274"]
[TimeControl "180+1"]
[EndTime "8:40:34 PST"]
[Termination "Game drawn by stalemate"]

1. d4 {[%clk 0:03:00.3]} 1... f5 {[%clk 0:02:58.3]} 2. Nf3 {[%clk 0:02:58.1]}
2... Nf6 {[%clk 0:02:57.8]} 3. e3 {[%clk 0:02:57.8]} 3... g6 {[%clk 0:02:58]} 4.
b3 {[%clk 0:02:53.7]} 4... Bg7 {[%clk 0:02:58.9]} 5. Bb2 {[%clk 0:02:53.8]} 5...
O-O {[%clk 0:02:59.8]} 6. Nbd2 {[%clk 0:02:53.9]} 6... d6 {[%clk 0:03:00.7]} 7.
Bd3 {[%clk 0:02:53.2]} 7... c6 {[%clk 0:02:58.5]} 8. O-O {[%clk 0:02:52.4]} 8...
Nbd7 {[%clk 0:02:58.8]} 9. Ng5 {[%clk 0:02:50.6]} 9... Nb6 {[%clk 0:02:54.7]}
10. a4 {[%clk 0:02:47.4]} 10... a5 {[%clk 0:02:51.9]} 11. Nc4 {[%clk 0:02:45.4]}
11... Nbd5 {[%clk 0:02:45.5]} 12. e4 {[%clk 0:02:39.6]} 12... fxe4 {[%clk
0:02:18.9]} 13. Nxe4 {[%clk 0:02:36.8]} 13... Nb4 {[%clk 0:02:17.4]} 14. Nxf6+
{[%clk 0:02:33.2]} 14... Bxf6 {[%clk 0:02:09.4]} 15. Ne3 {[%clk 0:02:28.9]}
15... d5 {[%clk 0:01:56.2]} 16. Be2 {[%clk 0:02:19.5]} 16... Bg5 {[%clk
0:01:45.2]} 17. Ng4 {[%clk 0:02:16]} 17... Bxg4 {[%clk 0:01:31.7]} 18. Bxg4
{[%clk 0:02:16.9]} 18... Bf6 {[%clk 0:01:29.4]} 19. Be6+ {[%clk 0:02:08.3]}
19... Kg7 {[%clk 0:01:29.4]} 20. f4 {[%clk 0:02:07.1]} 20... Qd6 {[%clk
0:01:26.9]} 21. f5 {[%clk 0:02:06.9]} 21... Na6 {[%clk 0:01:14.6]} 22. Ba3
{[%clk 0:02:03.1]} 22... Qd8 {[%clk 0:01:11.8]} 23. fxg6 {[%clk 0:01:47.1]}
23... Nc7 {[%clk 0:01:11.7]} 24. gxh7 {[%clk 0:01:23.3]} 24... Nxe6 {[%clk
0:01:07.4]} 25. h8=Q+ {[%clk 0:01:21]} 25... Rxh8 {[%clk 0:01:03.4]} 26. Qg4+
{[%clk 0:01:18.8]} 26... Kf7 {[%clk 0:00:38.5]} 27. Rae1 {[%clk 0:01:17.5]}
27... Ng7 {[%clk 0:00:26.1]} 28. Rxf6+ {[%clk 0:01:14.4]} 28... exf6 {[%clk
0:00:25.7]} 29. Re7+ {[%clk 0:01:13.6]} 29... Qxe7 {[%clk 0:00:24.9]} 30. Bxe7
{[%clk 0:01:14.5]} 30... Rae8 {[%clk 0:00:20.9]} 31. Bd6 {[%clk 0:00:58.5]}
31... Re4 {[%clk 0:00:19.5]} 32. Qd7+ {[%clk 0:00:56.8]} 32... Kg6 {[%clk
0:00:20.1]} 33. Qxb7 {[%clk 0:00:44.3]} 33... Nf5 {[%clk 0:00:19]} 34. Qxc6
{[%clk 0:00:44.2]} 34... Nxd4 {[%clk 0:00:16.4]} 35. Qxd5 {[%clk 0:00:41.8]}
35... Rhe8 {[%clk 0:00:15.3]} 36. Bg3 {[%clk 0:00:28.8]} 36... Nxc2 {[%clk
0:00:11.2]} 37. Qd3 {[%clk 0:00:25.7]} 37... Nb4 {[%clk 0:00:10.3]} 38. Qf3
{[%clk 0:00:24.5]} 38... R8e6 {[%clk 0:00:08.8]} 39. h4 {[%clk 0:00:24.2]} 39...
Kf7 {[%clk 0:00:08.4]} 40. h5 {[%clk 0:00:23.2]} 40... Nc6 {[%clk 0:00:08.4]}
41. h6 {[%clk 0:00:22.9]} 41... Nd4 {[%clk 0:00:08.9]} 42. Qh5+ {[%clk
0:00:22.9]} 42... Ke7 {[%clk 0:00:09.4]} 43. h7 {[%clk 0:00:22.4]} 43... Ne2+
{[%clk 0:00:07.2]} 44. Kh2 {[%clk 0:00:19.5]} 44... Nxg3 {[%clk 0:00:07]} 45.
Kxg3 {[%clk 0:00:20.1]} 45... R6e5 {[%clk 0:00:07.1]} 46. h8=Q {[%clk
0:00:19.7]} 46... Rxh5 {[%clk 0:00:06.9]} 47. Qxh5 {[%clk 0:00:20.1]} 47... Re3+
{[%clk 0:00:07.8]} 48. Kf2 {[%clk 0:00:19.8]} 48... Rxb3 {[%clk 0:00:08.7]} 49.
Qc5+ {[%clk 0:00:18.9]} 49... Ke8 {[%clk 0:00:07.1]} 50. Qc6+ {[%clk 0:00:16.4]}
50... Kf8 {[%clk 0:00:07.6]} 51. Qd6+ {[%clk 0:00:16]} 51... Kg7 {[%clk
0:00:07.9]} 52. Qe7+ {[%clk 0:00:16.3]} 52... Kg6 {[%clk 0:00:07.9]} 53. Qe8+
{[%clk 0:00:15.4]} 53... Kg5 {[%clk 0:00:07.8]} 54. Qe3+ {[%clk 0:00:10.8]}
54... Rxe3 {[%clk 0:00:06.7]} 55. Kxe3 {[%clk 0:00:11.7]} 55... Kf5 {[%clk
0:00:07.4]} 56. g3 {[%clk 0:00:11.5]} 56... Kg4 {[%clk 0:00:07.2]} 57. Ke4
{[%clk 0:00:09.6]} 57... Kxg3 {[%clk 0:00:07.2]} 58. Kf5 {[%clk 0:00:09.7]}
58... Kf3 {[%clk 0:00:08.1]} 59. Kxf6 {[%clk 0:00:10.3]} 59... Ke4 {[%clk
0:00:09]} 60. Ke6 {[%clk 0:00:11.1]} 60... Kd4 {[%clk 0:00:09.9]} 61. Kd6 {[%clk
0:00:11.6]} 61... Kc4 {[%clk 0:00:10.8]} 62. Ke5 {[%clk 0:00:11.7]} 62... Kb4
{[%clk 0:00:11.7]} 63. Kd4 {[%clk 0:00:12.2]} 63... Kxa4 {[%clk 0:00:11.9]} 64.
Kc3 {[%clk 0:00:12.7]} 64... Ka3 {[%clk 0:00:12.5]} 65. Kc2 {[%clk 0:00:12.3]}
65... Ka2 {[%clk 0:00:13]} 66. Kc1 {[%clk 0:00:12.6]} 66... a4 {[%clk
0:00:13.9]} 67. Kc2 {[%clk 0:00:13]} 67... Ka1 {[%clk 0:00:14.2]} 68. Kc1 {[%clk
0:00:12]} 68... a3 {[%clk 0:00:14.9]} 69. Kc2 {[%clk 0:00:11.6]} 69... a2 {[%clk
0:00:15.3]} 70. Kc1 {[%clk 0:00:11.1]} 1/2-1/2

[Event "Early-Titled-Tuesday-Blitz-February-06-2024"]
[Site "Chess.com"]
[Date "2024.02.06"]
[Round "4"]
[White "angelgab3"]
[Black "RobertJFischer71"]
[Result "0-1"]
[WhiteElo "2752"]
[BlackElo "2559"]
[TimeControl "180+1"]
[EndTime "8:40:35 PST"]
[Termination "RobertJFischer71 won on time"]

1. e4 {[%clk 0:02:57]} 1... c5 {[%clk 0:03:00.3]} 2. Nf3 {[%clk 0:02:57.3]} 2...
d6 {[%clk 0:03:00.6]} 3. Bb5+ {[%clk 0:02:57.8]} 3... Nd7 {[%clk 0:03:00.4]} 4.
a4 {[%clk 0:02:57.5]} 4... Nf6 {[%clk 0:02:56.3]} 5. Nc3 {[%clk 0:02:57.5]} 5...
e6 {[%clk 0:02:54]} 6. O-O {[%clk 0:02:57.1]} 6... Be7 {[%clk 0:02:53.8]} 7. a5
{[%clk 0:02:54.9]} 7... O-O {[%clk 0:02:52]} 8. d4 {[%clk 0:02:52.8]} 8... cxd4
{[%clk 0:02:45.1]} 9. Qxd4 {[%clk 0:02:53.7]} 9... a6 {[%clk 0:02:45]} 10. Be2
{[%clk 0:02:48.9]} 10... Qc7 {[%clk 0:02:45.2]} 11. Rd1 {[%clk 0:02:47.6]} 11...
Ne5 {[%clk 0:02:45.1]} 12. Nxe5 {[%clk 0:02:46.9]} 12... dxe5 {[%clk 0:02:46]}
13. Qc4 {[%clk 0:02:47.5]} 13... Qxc4 {[%clk 0:02:37.8]} 14. Bxc4 {[%clk
0:02:48.4]} 14... Bd7 {[%clk 0:02:37.3]} 15. Be3 {[%clk 0:02:47.4]} 15... Bc6
{[%clk 0:02:37.4]} 16. f3 {[%clk 0:02:46.5]} 16... Nd7 {[%clk 0:02:30.5]} 17.
Kf2 {[%clk 0:02:35.8]} 17... Rac8 {[%clk 0:02:26.9]} 18. b3 {[%clk 0:02:28.9]}
18... Rfd8 {[%clk 0:02:21.9]} 19. Na4 {[%clk 0:02:27.7]} 19... Bxa4 {[%clk
0:02:06.8]} 20. Rxa4 {[%clk 0:02:28.6]} 20... Bc5 {[%clk 0:02:07.2]} 21. Raa1
{[%clk 0:02:25.6]} 21... Bxe3+ {[%clk 0:02:03.1]} 22. Kxe3 {[%clk 0:02:26.5]}
22... Nb8 {[%clk 0:01:56.9]} 23. Rd3 {[%clk 0:02:20.1]} 23... Rxd3+ {[%clk
0:01:50.4]} 24. Bxd3 {[%clk 0:02:21]} 24... Kf8 {[%clk 0:01:48.4]} 25. Kd2
{[%clk 0:02:03.3]} 25... Ke7 {[%clk 0:01:30.1]} 26. c3 {[%clk 0:01:48.8]} 26...
g6 {[%clk 0:01:27.3]} 27. b4 {[%clk 0:01:48.8]} 27... f5 {[%clk 0:01:27.2]} 28.
h4 {[%clk 0:01:44.6]} 28... h6 {[%clk 0:01:26.4]} 29. h5 {[%clk 0:01:24.3]}
29... gxh5 {[%clk 0:01:17.6]} 30. exf5 {[%clk 0:01:17.4]} 30... Rg8 {[%clk
0:01:17.8]} 31. fxe6 {[%clk 0:00:56]} 31... Rxg2+ {[%clk 0:01:17.2]} 32. Ke3
{[%clk 0:00:56.7]} 32... Kxe6 {[%clk 0:01:13.1]} 33. Be4 {[%clk 0:00:57]} 33...
Rg7 {[%clk 0:00:57.8]} 34. Rh1 {[%clk 0:00:55.1]} 34... Rc7 {[%clk 0:00:57.8]}
35. Kd3 {[%clk 0:00:47.1]} 35... Nd7 {[%clk 0:00:25]} 36. Rxh5 {[%clk
0:00:47.3]} 36... Nf6 {[%clk 0:00:24.7]} 37. Rxh6 {[%clk 0:00:47.9]} 37... Rd7+
{[%clk 0:00:25.2]} 38. Kc2 {[%clk 0:00:45.8]} 38... Rg7 {[%clk 0:00:19.7]} 39.
Bd3 {[%clk 0:00:26.6]} 39... Rg3 {[%clk 0:00:11.7]} 40. Bc4+ {[%clk 0:00:24.6]}
40... Ke7 {[%clk 0:00:11.4]} 41. Rh8 {[%clk 0:00:22.6]} 41... Rxf3 {[%clk
0:00:09]} 42. Rb8 {[%clk 0:00:23.3]} 42... Ne4 {[%clk 0:00:06.9]} 43. Rxb7+
{[%clk 0:00:21]} 43... Kd8 {[%clk 0:00:07.3]} 44. Bxa6 {[%clk 0:00:20.1]} 44...
Rxc3+ {[%clk 0:00:06.1]} 45. Kb2 {[%clk 0:00:19.9]} 45... Rc7 {[%clk 0:00:03.8]}
46. Rb8+ {[%clk 0:00:15.1]} 46... Ke7 {[%clk 0:00:03.6]} 47. Bd3 {[%clk
0:00:15]} 47... Nd6 {[%clk 0:00:02.2]} 48. a6 {[%clk 0:00:13.6]} 48... e4 {[%clk
0:00:02.1]} 49. Be2 {[%clk 0:00:13.5]} 49... e3 {[%clk 0:00:02.5]} 50. b5 {[%clk
0:00:11]} 50... Nc4+ {[%clk 0:00:02.7]} 51. Kb3 {[%clk 0:00:04.2]} 51... Na5+
{[%clk 0:00:01.9]} 52. Kb4 {[%clk 0:00:03.7]} 52... Rc2 {[%clk 0:00:02]} 53.
Kxa5 {[%clk 0:00:03.3]} 53... Rxe2 {[%clk 0:00:02.4]} 54. a7 {[%clk 0:00:02.2]}
54... Ra2+ {[%clk 0:00:03.3]} 55. Kb6 {[%clk 0:00:01]} 55... e2 {[%clk
0:00:04.2]} 0-1